fUST/lending_fUST_20251011
["ID","MTS","AMOUNT","RATE_DAILY","PERIOD"]
[390846787,1760178553587,-151.0,0.0001941,2]
[390846788,1760178553607,-326.0,0.0001941,2]
[390846789,1760178553627,-151.0,0.0001941,2]
[390846790,1760178553653,-198.0,0.0001941,2]
[390846791,1760178553674,-198.0,0.0001941,2]
[390846792,1760178553695,-150.95070752,0.00019437,2]
[390846793,1760178553715,-151.0,0.00019464,2]
[390846794,1760178553737,-151.0,0.00019464,2]
[390846795,1760178553757,-151.0,0.00019519,2]
[390846796,1760178553777,-151.0,0.00019519,2]
[390846797,1760178553798,-195.0,0.00019522,2]
[390846798,1760178553818,-486.25977014,0.00019537,2]
[390846799,1760178553838,-500.0,0.00019574,2]
[390846800,1760178553857,-245.0,0.00019574,2]
[390846801,1760178553877,-245.0,0.00019574,2]
[390846802,1760178553895,-235.24,0.00019574,2]
[390846803,1760178553915,-600.0,0.00019645,2]
[390846804,1760178553936,-500.0,0.00019848,2]
[390846805,1760178553955,-1000.0,0.00019848,2]
[390846806,1760178553974,-579.37251432,0.00019848,2]
[390846807,1760178553994,-501.37593705,0.00019848,2]
[390846808,1760178554013,-500.75953278,0.00019848,2]
[390846809,1760178554032,-1000.59476898,0.00019848,2]
[390846810,1760178554051,-568.67253914,0.00019848,2]
[390846811,1760178554072,-1000.0,0.00019848,2]
[390846812,1760178554093,-500.0,0.00019848,2]
[390846813,1760178554113,-576.33805641,0.00019848,2]
[390846814,1760178554133,-1007.55432842,0.00019848,2]
[390846815,1760178554153,-1001.27374146,0.00019848,2]
[390846816,1760178554174,-1000.0,0.00019848,2]
[390846817,1760178554193,-1000.0,0.00019848,2]
[390846818,1760178554212,-1000.0,0.00019848,2]
[390846819,1760178554234,-1000.0,0.00019848,2]
[390846820,1760178554254,-1000.0,0.00019848,2]
[390846821,1760178554273,-500.0,0.00019848,2]
[390846822,1760178554293,-1000.0,0.00019848,2]
[390846823,1760178554312,-1000.0,0.00019848,2]
[390846824,1760178554332,-502.6429702,0.00019848,2]
[390846825,1760178554352,-821.53753827,0.00019848,2]
[390846826,1760178554371,-1000.0,0.00019848,2]
[390846827,1760178554390,-500.0,0.00019848,2]
[390846828,1760178554410,-501.00883299,0.00019848,2]
[390846829,1760178554429,-235.26904035,0.00019848,2]
[390846830,1760178554448,-340.08871916,0.00019918,2]
[390846831,1760178554469,-486.737859,0.0001993,2]
[390846832,1760178554573,-500.0,0.00020122,2]
[390846833,1760178554594,-217.5,0.00020122,2]
[390846834,1760178554614,-157.0,0.00020329,3]
[390846835,1760178554634,-257.26066771,0.00020341,2]
[390846836,1760178554658,-500.9986309,0.00020396,2]
[390846837,1760178554678,-1500.0,0.00020396,2]
[390846838,1760178554700,-1500.0,0.00020396,2]
[390846839,1760178554723,-501.71126757,0.00020396,2]
[390846840,1760178554742,-500.0,0.00020396,2]
[390846841,1760178554761,-1500.0,0.00020396,2]
[390846842,1760178554781,-1500.0,0.00020396,2]
[390846843,1760178554801,-500.0,0.00020396,2]
[390846844,1760178554822,-1500.0,0.00020396,2]
[390846845,1760178554842,-151.0,0.000204,3]
[390846846,1760178554862,-2840.0276302,0.00020412,2]
[390846847,1760178554882,-428.8,0.00020503,2]
[390846848,1760178554901,-1372.87739299,0.0002061,2]
[390846849,1760178554922,-240.0,0.00020722,2]
[390846850,1760178554942,-151.0,0.000208,4]
[390846851,1760178554962,-1500.0,0.00020944,2]
[390846852,1760178554981,-501.93574929,0.00020944,2]
[390846853,1760178555000,-2000.0,0.00020944,2]
[390846854,1760178555020,-2004.52436993,0.00020944,2]
[390846855,1760178555040,-366.39,0.0002098,3]
[390846856,1760178555059,-549.61,0.0002098,3]
[390846857,1760178555079,-2538.65,0.0002099,3]
[390846858,1760178555099,-1465.57,0.0002099,3]
[390846859,1760178555119,-732.79,0.0002099,3]
[390846860,1760178555145,-183.2,0.0002099,3]
[390846861,1760178555185,-12035.55156866,0.00021,2]
[390846862,1760178555230,-151.0,0.000212,3]
[390846863,1760178555267,-250.0,0.0002131,2]
[390846864,1760178555299,-262.5,0.00021322,2]
[390846865,1760178555340,-1004.07757736,0.00021492,2]
[390846866,1760178555375,-720.0,0.0002161,20]
[390846867,1760178555414,-151.0,0.000217,4]
[390846868,1760178555445,-285.0,0.00021922,2]
[390846869,1760178555479,-151.0,0.000221,10]
[390846870,1760178555511,-643.2,0.00022211,2]
[390846871,1760178555543,-732.78,0.0002235,3]
[390846872,1760178555576,-4236.18014781,0.0002236,3]
[390846874,1760178562853,618.63113994,0.00017017,2]
[390846899,1760178632091,-1985.56336751,0.00017017,2]
[390846900,1760178632103,-2395.80549255,0.00017017,2]
[390846901,1760178632112,-200.0,0.00017017,2]
[390846902,1760178632121,-300.0,0.00017188,2]
[390846903,1760178632130,-5000.0,0.00017189,2]
[390846904,1760178632141,-300.0,0.00017532,2]
[390846905,1760178632150,-300.0,0.00017532,2]
[390846906,1760178632159,-300.0,0.00017532,2]
[390846907,1760178632168,-300.0,0.00017532,2]
[390846908,1760178632178,-300.0,0.00017532,2]
[390846909,1760178632187,-300.0,0.00017532,2]
[390846910,1760178632196,-300.0,0.00017532,2]
[390846911,1760178632205,-300.0,0.00017532,2]
[390846912,1760178632214,-300.0,0.00017532,2]
[390846913,1760178632223,-300.0,0.00017532,2]
[390846914,1760178632232,-300.0,0.00017532,2]
[390846915,1760178632241,-300.0,0.00017532,2]
[390846916,1760178632251,-300.0,0.00017532,2]
[390846917,1760178632260,-300.0,0.00017532,2]
[390846918,1760178632269,-300.0,0.00017532,2]
[390846919,1760178632278,-600.0,0.00017882,2]
[390846920,1760178632289,-420.0,0.0001877,2]
[390846921,1760178632299,-211.67,0.00018919,2]
[390846922,1760178632308,-500.0,0.000193,2]
[390846923,1760178632317,-500.0,0.000193,2]
[390846924,1760178632327,-159.7348881,0.000193,2]
[390846925,1760178632336,-720.0,0.0001967,2]
[390846926,1760178632345,-1001.23213622,0.00019848,2]
[390846927,1760178632354,-1000.0,0.00019848,2]
[390846928,1760178632363,-1500.0,0.00020396,2]
[390846929,1760178632372,-347.0,0.00020497,2]
[390846930,1760178632381,-423.34,0.00020639,2]
[390846931,1760178632391,-1007.1927802,0.00020944,2]
[390846932,1760178632400,-864.0,0.00021637,20]
[390846933,1760178632409,-937.8056093,0.00021986,2]
[390846934,1760178632419,-635.02,0.00022359,2]
[390846935,1760178632428,-841.11985219,0.0002236,3]
[390846936,1760178632437,-2931.14,0.0002236,3]
[390846937,1760178632446,-1465.58,0.0002236,3]
[390846938,1760178632456,-366.4,0.0002236,3]
[390846939,1760178632465,-151.0,0.000225,6]
[390846940,1760178632474,-4866.88457147,0.00022522,2]
[390846941,1760178632484,-307.5,0.00022522,2]
[390846942,1760178632493,-151.0,0.00023,10]
[390846943,1760178632502,-304.50459356,0.00023122,2]
[390846944,1760178632511,-486.737859,0.00023355,2]
[390846945,1760178632520,-151.0,0.000234,5]
[390846946,1760178632529,-1312.886348,0.0002359,2]
[390846947,1760178632539,-166.46220105,0.00023611,5]
[390846948,1760178632549,-160.03104987,0.00023611,5]
[390846949,1760178632558,-151.0,0.000238,6]
[390846950,1760178632567,-1000.0,0.000238,20]
[390846951,1760178632576,-5730.97,0.0002394,10]
[390846952,1760178632585,-94127.02561165,0.0002395,2]
[390846953,1760178632595,-2609.37557469,0.0002398,10]
[390846954,1760178632603,-100000.0,0.0002399,2]
[390846955,1760178632612,-846.69,0.00024078,2]
[390846956,1760178632621,-151.0,0.000242,8]
[390846957,1760178632631,-166.46220105,0.00024341,5]
[390846958,1760178632640,-160.03104987,0.00024341,5]
[390846959,1760178632649,-9068.90211802,0.00024362,2]
[390846960,1760178632659,-2565.37084956,0.00024368,2]
[390846961,1760178632669,-151.0,0.000244,10]
[390846962,1760178632681,-9068.90211801,0.00024411,2]
[390846963,1760178632691,-3298.872934,0.00024447,2]
[390846964,1760178632700,-500.0,0.00024457,5]
[390846965,1760178632710,-370000.0,0.00024457,2]
[390846966,1760178632719,-9068.90211801,0.0002446,2]
[390846967,1760178632729,-2565.37084956,0.00024463,2]
[390846968,1760178632738,-331.10112452,0.00024468,2]
[390846969,1760178632747,-609.57135988,0.00024473,2]
[390846970,1760178632758,-501.84636008,0.00024473,2]
[390846971,1760178632767,-324.69534028,0.00024473,2]
[390846972,1760178632777,-500.51536952,0.00024473,2]
[390846973,1760178632786,-501.0174105,0.00024473,2]
[390846974,1760178632795,-151.0,0.000245,8]
[390846975,1760178632804,-151.0,0.000245,6]
[390846976,1760178632813,-151.0,0.000245,6]
[390846977,1760178632822,-151.0,0.000245,10]
[390846978,1760178632832,-151.0,0.000245,6]
[390846979,1760178632843,-9068.90211801,0.00024508,2]
[390846980,1760178632852,-500.0,0.00024547,2]
[390846981,1760178632861,-212.09325666,0.00024547,2]
[390846982,1760178632870,-500.0,0.00024547,2]
[390846983,1760178632879,-82197.8855732,0.00024549,2]
[390846984,1760178632888,-1000.0,0.00024556,2]
[390846985,1760178632897,-205.10522659,0.00024557,2]
[390846986,1760178632907,-2565.37084956,0.00024557,2]
[390846987,1760178632916,-9068.90211801,0.00024557,2]
[390846988,1760178632925,-3996.43224544,0.00024557,2]
[390846989,1760178632935,-2361.52669333,0.00024594,2]
[390846990,1760178632945,-151.0,0.000246,8]
[390846991,1760178632954,-151.0,0.000246,9]
[390846992,1760178632964,-151.0,0.000246,6]
[390846993,1760178632973,-151.0,0.000246,6]
[390846994,1760178632982,-151.0,0.000246,9]
[390846995,1760178632992,-151.0,0.000246,7]
[390846996,1760178633001,-151.0,0.000246,7]
[390846997,1760178633011,-151.0,0.000246,7]
[390846998,1760178633021,-151.0,0.000246,6]
[390846999,1760178633030,-3073.6728155,0.00024635,2]
[390847000,1760178633041,-500.0,0.00024656,2]
[390847001,1760178633051,-500.0,0.00024656,2]
[390847002,1760178633060,-314.6615928,0.00024656,2]
[390847003,1760178633069,-500.0,0.00024656,2]
[390847004,1760178633078,-500.0,0.00024656,2]
[390847005,1760178633088,-408.47605,0.00024656,2]
[390847006,1760178633097,-500.0,0.00024656,2]
[390847007,1760178633106,-214.92414837,0.00024656,2]
[390847008,1760178633115,-500.0,0.00024657,9]
[390847009,1760178633124,-500.0,0.00024657,9]
[390847010,1760178633134,-500.0,0.00024657,9]
[390847011,1760178633143,-500.0,0.00024657,9]
[390847012,1760178633153,-500.0,0.00024657,9]
[390847013,1760178633162,-500.0,0.00024657,9]
[390847014,1760178633171,-500.0,0.00024657,9]
[390847015,1760178633181,-500.0,0.00024657,9]
[390847016,1760178633190,-500.0,0.00024657,9]
[390847017,1760178633199,-500.0,0.00024657,9]
[390847018,1760178633209,-500.0,0.00024657,9]
[390847019,1760178633218,-500.0,0.00024657,9]
[390847020,1760178633227,-500.0,0.00024657,9]
[390847021,1760178633237,-382.9108365,0.00024657,9]
[390847022,1760178633246,-500.0,0.00024657,9]
[390847023,1760178633255,-500.0,0.00024657,9]
[390847024,1760178633345,-500.0,0.00024657,9]
[390847025,1760178633355,-490.16028397,0.00024657,9]
[390847026,1760178633365,-500.0,0.00024657,9]
[390847027,1760178633374,-500.0,0.00024657,9]
[390847028,1760178633383,-500.0,0.00024657,9]
[390847029,1760178633392,-501.29750115,0.00024657,9]
[390847030,1760178633402,-500.0,0.00024657,9]
[390847031,1760178633411,-635.95317614,0.00024657,9]
[390847032,1760178633420,-500.0,0.00024657,9]
[390847033,1760178633430,-500.0,0.00024657,9]
[390847034,1760178633439,-500.0,0.00024657,9]
[390847035,1760178633448,-500.0,0.00024657,2]
[390847036,1760178633458,-500.0,0.00024657,2]
[390847037,1760178633467,-500.0,0.00024657,2]
[390847038,1760178633476,-500.0,0.00024657,9]
[390847039,1760178633486,-500.0,0.00024657,9]
[390847040,1760178633495,-500.0,0.00024657,9]
[390847041,1760178633505,-500.0,0.00024657,9]
[390847042,1760178633514,-500.0,0.00024657,9]
[390847043,1760178633524,-500.0,0.00024657,9]
[390847044,1760178633533,-242.95261191,0.00024657,9]
[390847045,1760178633543,-500.0,0.00024657,9]
[390847046,1760178633553,-500.0,0.00024657,9]
[390847047,1760178633562,-500.0,0.00024657,9]
[390847048,1760178633572,-500.0,0.00024657,9]
[390847049,1760178633581,-500.0,0.00024657,9]
[390847050,1760178633591,-500.0,0.00024657,9]
[390847051,1760178633600,-500.0,0.00024657,9]
[390847052,1760178633610,-500.0,0.00024657,9]
[390847053,1760178633619,-500.0,0.00024657,9]
[390847054,1760178633628,-500.0,0.00024657,9]
[390847055,1760178633638,-500.0,0.00024657,9]
[390847056,1760178633648,-330.81891111,0.00024657,9]
[390847057,1760178633658,-500.0,0.00024657,9]
[390847058,1760178633668,-548.7350797,0.00024657,9]
[390847059,1760178633682,-500.0,0.00024657,9]
[390847060,1760178633691,-500.0,0.00024657,9]
[390847061,1760178633701,-500.0,0.00024657,9]
[390847062,1760178633710,-500.0,0.00024657,9]
[390847063,1760178633721,-500.0,0.00024657,9]
[390847064,1760178633730,-500.0,0.00024657,9]
[390847065,1760178633739,-500.0,0.00024657,9]
[390847066,1760178633750,-500.0,0.00024657,9]
[390847067,1760178633760,-500.42755785,0.00024657,9]
[390847068,1760178633769,-480.0,0.00024657,9]
[390847069,1760178633779,-500.0,0.00024657,9]
[390847070,1760178633789,-500.0,0.00024657,9]
[390847071,1760178633798,-500.0,0.00024657,9]
[390847072,1760178633807,-468.11596421,0.00024657,9]
[390847073,1760178633816,-500.0,0.00024657,9]
[390847074,1760178633825,-500.0,0.00024657,9]
[390847075,1760178633834,-500.0,0.00024657,9]
[390847076,1760178633844,-500.0,0.00024657,9]
[390847077,1760178633853,-500.0,0.00024657,9]
[390847078,1760178633862,-500.0,0.00024657,9]
[390847079,1760178633872,-500.0,0.00024657,9]
[390847080,1760178633889,-500.0,0.00024657,9]
[390847081,1760178633907,-500.0,0.00024657,9]
[390847082,1760178633925,-500.0,0.00024657,9]
[390847083,1760178633945,-500.0,0.00024657,9]
[390847084,1760178633966,-500.0,0.00024657,9]
[390847085,1760178633982,-500.0,0.00024657,9]
[390847086,1760178634000,-566.6767466,0.00024657,9]
[390847087,1760178634015,-500.0,0.00024657,9]
[390847088,1760178634030,-500.0,0.00024657,9]
[390847089,1760178634050,-500.0,0.00024657,9]
[390847090,1760178634070,-155.13937293,0.00024657,9]
[390847091,1760178634086,-500.0,0.00024657,9]
[390847092,1760178634100,-500.0,0.00024657,9]
[390847093,1760178634118,-500.0,0.00024657,9]
[390847094,1760178634132,-500.0,0.00024657,9]
[390847095,1760178634147,-500.0,0.00024657,9]
[390847096,1760178634160,-500.0,0.00024657,9]
[390847097,1760178634176,-500.0,0.00024657,9]
[390847098,1760178634194,-500.0,0.00024657,9]
[390847099,1760178634209,-500.0,0.00024657,9]
[390847100,1760178634225,-500.0,0.00024657,9]
[390847101,1760178634241,-500.0,0.00024657,9]
[390847102,1760178634257,-500.0,0.00024657,9]
[390847103,1760178634273,-500.0,0.00024657,9]
[390847104,1760178634289,-500.0,0.00024657,9]
[390847105,1760178634304,-500.0,0.00024657,9]
[390847106,1760178634319,-500.0,0.00024657,9]
[390847107,1760178634335,-500.0,0.00024657,9]
[390847108,1760178634349,-500.0,0.00024657,9]
[390847109,1760178634364,-500.0,0.00024657,9]
[390847110,1760178634378,-500.0,0.00024657,9]
[390847111,1760178634393,-160.77781566,0.00024657,9]
[390847112,1760178634408,-500.19137174,0.00024657,9]
[390847113,1760178634423,-500.0,0.00024657,9]
[390847114,1760178634437,-500.0,0.00024657,9]
[390847115,1760178634452,-500.61437216,0.00024657,9]
[390847116,1760178634467,-500.0,0.00024657,9]
[390847117,1760178634482,-500.0,0.00024657,9]
[390847118,1760178634496,-500.0,0.00024657,9]
[390847119,1760178634511,-500.0,0.00024657,9]
[390847120,1760178634526,-500.0,0.00024657,9]
[390847121,1760178634540,-500.0,0.00024657,9]
[390847122,1760178634554,-500.0,0.00024657,9]
[390847123,1760178634568,-500.0,0.00024657,9]
[390847124,1760178634582,-500.0,0.00024657,9]
[390847125,1760178634597,-500.0,0.00024657,9]
[390847126,1760178634611,-500.0,0.00024657,9]
[390847127,1760178634625,-502.62135688,0.00024657,9]
[390847128,1760178634639,-500.0,0.00024657,9]
[390847129,1760178634654,-364.40512087,0.00024657,9]
[390847130,1760178634669,-500.0,0.00024657,9]
[390847131,1760178634690,-500.0,0.00024657,9]
[390847132,1760178634705,-621.57218634,0.00024657,9]
[390847133,1760178634722,-500.0,0.00024657,9]
[390847134,1760178634737,-500.0,0.00024657,9]
[390847135,1760178634754,-500.0,0.00024657,9]
[390847136,1760178634770,-500.0,0.00024657,9]
[390847137,1760178634784,-500.0,0.00024657,9]
[390847138,1760178634794,-500.0,0.00024657,9]
[390847139,1760178634803,-500.0,0.00024657,9]
[390847140,1760178634812,-500.0,0.00024657,9]
[390847141,1760178634961,-500.0,0.00024657,9]
[390847142,1760178634984,-500.0,0.00024657,9]
[390847143,1760178634993,-500.0,0.00024657,9]
[390847144,1760178635003,-582.62600369,0.00024657,9]
[390847145,1760178635014,-500.0,0.00024657,9]
[390847146,1760178635023,-500.0,0.00024657,9]
[390847147,1760178635032,-500.0,0.00024657,9]
[390847148,1760178635042,-500.0,0.00024657,9]
[390847149,1760178635052,-500.0,0.00024657,9]
[390847150,1760178635061,-500.0,0.00024657,9]
[390847151,1760178635070,-500.0,0.00024657,9]
[390847152,1760178635080,-500.0,0.00024657,9]
[390847153,1760178635089,-500.0,0.00024657,9]
[390847154,1760178635097,-500.0,0.00024657,9]
[390847155,1760178635106,-500.0,0.00024657,9]
[390847156,1760178635116,-500.0,0.00024657,9]
[390847157,1760178635125,-500.0,0.00024657,9]
[390847158,1760178635134,-500.0,0.00024657,9]
[390847159,1760178635145,-500.0,0.00024657,9]
[390847160,1760178635155,-500.0,0.00024657,9]
[390847161,1760178635164,-500.0,0.00024657,9]
[390847162,1760178635173,-500.0,0.00024657,9]
[390847163,1760178635182,-500.0,0.00024657,9]
[390847164,1760178635191,-500.0,0.00024657,9]
[390847165,1760178635200,-500.0,0.00024657,9]
[390847166,1760178635211,-500.0,0.00024657,9]
[390847167,1760178635221,-500.0,0.00024657,9]
[390847168,1760178635230,-500.0,0.00024657,9]
[390847169,1760178635240,-500.0,0.00024657,9]
[390847170,1760178635249,-500.0,0.00024657,9]
[390847171,1760178635258,-500.0,0.00024657,9]
[390847172,1760178635268,-500.0,0.00024657,9]
[390847173,1760178635278,-500.0,0.00024657,9]
[390847174,1760178635288,-500.0,0.00024657,9]
[390847175,1760178635299,-500.0,0.00024657,9]
[390847176,1760178635308,-500.0,0.00024657,9]
[390847177,1760178635317,-500.0,0.00024657,9]
[390847178,1760178635326,-500.0,0.00024657,9]
[390847179,1760178635336,-500.0,0.00024657,9]
[390847180,1760178635345,-500.0,0.00024657,9]
[390847181,1760178635355,-500.0,0.00024657,9]
[390847182,1760178635364,-500.0,0.00024657,9]
[390847183,1760178635373,-500.0,0.00024657,9]
[390847184,1760178635383,-500.0,0.00024657,9]
[390847185,1760178635393,-500.0,0.00024657,9]
[390847186,1760178635402,-500.0,0.00024657,9]
[390847187,1760178635412,-500.0,0.00024657,9]
[390847188,1760178635421,-195.7386966,0.00024657,9]
[390847189,1760178635430,-500.0,0.00024657,9]
[390847190,1760178635439,-500.0,0.00024657,9]
[390847191,1760178635449,-500.0,0.00024657,9]
[390847192,1760178635458,-500.0,0.00024657,9]
[390847193,1760178635467,-394.34507284,0.00024657,9]
[390847194,1760178635477,-809.57,0.00024657,9]
[390847195,1760178635486,-809.57,0.00024657,9]
[390847196,1760178635495,-809.57,0.00024657,9]
[390847197,1760178635504,-809.57,0.00024657,9]
[390847198,1760178635513,-809.57,0.00024657,9]
[390847199,1760178635523,-809.57,0.00024657,9]
[390847200,1760178635532,-809.57,0.00024657,9]
[390847201,1760178635544,-809.57,0.00024657,9]
[390847202,1760178635554,-809.57,0.00024657,9]
[390847203,1760178635563,-809.57,0.00024657,9]
[390847204,1760178635572,-809.57,0.00024657,9]
[390847205,1760178635582,-809.57,0.00024657,9]
[390847206,1760178635591,-809.57,0.00024657,9]
[390847207,1760178635601,-809.57,0.00024657,9]
[390847208,1760178635610,-500.0,0.00024657,9]
[390847209,1760178635620,-500.0,0.00024657,9]
[390847210,1760178635629,-500.0,0.00024657,9]
[390847211,1760178635639,-271.50714402,0.00024657,9]
[390847212,1760178635648,-809.57,0.00024657,9]
[390847213,1760178635658,-809.57,0.00024657,9]
[390847214,1760178635667,-809.57,0.00024657,9]
[390847215,1760178635680,-809.57,0.00024657,9]
[390847216,1760178635690,-809.57,0.00024657,9]
[390847217,1760178635699,-809.57,0.00024657,9]
[390847218,1760178635708,-809.57,0.00024657,9]
[390847219,1760178635719,-809.57,0.00024657,9]
[390847220,1760178635728,-809.57,0.00024657,9]
[390847221,1760178635738,-809.63819843,0.00024657,9]
[390847222,1760178635748,-500.0,0.00024657,9]
[390847223,1760178635762,-500.0,0.00024657,9]
[390847224,1760178635771,-500.0,0.00024657,9]
[390847225,1760178635780,-267.0053875,0.00024657,9]
[390847226,1760178635791,-500.0,0.00024657,9]
[390847227,1760178635800,-500.0,0.00024657,9]
[390847228,1760178635810,-500.0,0.00024657,9]
[390847229,1760178635820,-500.0,0.00024657,9]
[390847230,1760178635829,-500.0,0.00024657,9]
[390847231,1760178635838,-500.0,0.00024657,9]
[390847232,1760178635847,-500.0,0.00024657,9]
[390847233,1760178635855,-107.20493323,0.00024657,9]
[390847234,1760178635992,-375.62695607,0.00024657,9]
[390847235,1760178636002,-500.0,0.00024657,9]
[390847236,1760178636011,-500.0,0.00024657,9]
[390847237,1760178636020,-500.0,0.00024657,9]
[390847238,1760178636029,-500.0,0.00024657,9]
[390847239,1760178636039,-500.0,0.00024657,9]
[390847240,1760178636049,-500.0,0.00024657,9]
[390847241,1760178636059,-501.53132577,0.00024657,9]
[390847242,1760178636068,-500.0,0.00024657,9]
[390847243,1760178636077,-395.27,0.00024657,9]
[390847244,1760178636086,-500.0,0.00024657,9]
[390847245,1760178636095,-500.0,0.00024657,9]
[390847246,1760178636104,-500.0,0.00024657,9]
[390847247,1760178636113,-500.0,0.00024657,9]
[390847248,1760178636123,-500.0,0.00024657,9]
[390847249,1760178636132,-500.0,0.00024657,9]
[390847250,1760178636141,-500.0,0.00024657,9]
[390847251,1760178636150,-500.0,0.00024657,9]
[390847252,1760178636159,-500.0,0.00024657,9]
[390847253,1760178636168,-500.0,0.00024657,9]
[390847254,1760178636178,-500.0,0.00024657,9]
[390847255,1760178636187,-500.0,0.00024657,9]
[390847256,1760178636196,-500.0,0.00024657,9]
[390847257,1760178636205,-500.0,0.00024657,9]
[390847258,1760178636215,-500.0,0.00024657,9]
[390847259,1760178636228,-500.0,0.00024657,9]
[390847260,1760178636238,-500.0,0.00024657,9]
[390847261,1760178636247,-500.0,0.00024657,9]
[390847262,1760178636256,-500.0,0.00024657,9]
[390847263,1760178636266,-500.0,0.00024657,9]
[390847264,1760178636276,-324.07963535,0.00024657,9]
[390847265,1760178636286,-500.0,0.00024657,9]
[390847266,1760178636297,-500.0,0.00024657,9]
[390847267,1760178636307,-500.0,0.00024657,9]
[390847268,1760178636316,-500.0,0.00024657,9]
[390847269,1760178636325,-500.0,0.00024657,9]
[390847270,1760178636335,-500.0,0.00024657,9]
[390847271,1760178636344,-440.29239338,0.00024657,9]
[390847272,1760178636353,-500.0,0.00024657,9]
[390847273,1760178636363,-500.0,0.00024657,9]
[390847274,1760178636372,-500.0,0.00024657,9]
[390847275,1760178636381,-293.42807552,0.00024657,9]
[390847276,1760178636391,-500.0,0.00024657,9]
[390847277,1760178636400,-500.66665661,0.00024657,9]
[390847278,1760178636409,-500.0,0.00024657,9]
[390847279,1760178636418,-500.0,0.00024657,9]
[390847280,1760178636427,-500.0,0.00024657,9]
[390847281,1760178636436,-225.81269214,0.00024657,9]
[390847282,1760178636445,-530.92144843,0.00024657,9]
[390847283,1760178636455,-500.0,0.00024657,9]
[390847284,1760178636464,-500.0,0.00024657,9]
[390847285,1760178636474,-482.72561223,0.00024657,9]
[390847286,1760178636484,-500.0,0.00024657,9]
[390847287,1760178636494,-500.0,0.00024657,9]
[390847288,1760178636503,-500.0,0.00024657,9]
[390847289,1760178636512,-500.0,0.00024657,9]
[390847290,1760178636522,-500.0,0.00024657,9]
[390847291,1760178636531,-500.0,0.00024657,9]
[390847292,1760178636541,-500.0,0.00024657,9]
[390847293,1760178636551,-500.0,0.00024657,9]
[390847294,1760178636560,-433.72193075,0.00024657,9]
[390847295,1760178636569,-500.0,0.00024657,9]
[390847296,1760178636579,-500.0,0.00024657,9]
[390847297,1760178636588,-500.0,0.00024657,9]
[390847298,1760178636598,-500.0,0.00024657,9]
[390847299,1760178636607,-500.0,0.00024657,9]
[390847300,1760178636617,-500.0,0.00024657,9]
[390847301,1760178636627,-500.0,0.00024657,9]
[390847302,1760178636636,-500.0,0.00024657,9]
[390847303,1760178636646,-500.0,0.00024657,9]
[390847304,1760178636656,-566.31,0.00024657,9]
[390847305,1760178636667,-564.92254892,0.00024657,9]
[390847306,1760178636682,-566.31,0.00024657,9]
[390847307,1760178636691,-566.31,0.00024657,9]
[390847308,1760178636701,-566.31,0.00024657,9]
[390847309,1760178636711,-566.31,0.00024657,9]
[390847310,1760178636722,-566.31,0.00024657,9]
[390847311,1760178636731,-566.31,0.00024657,9]